fUSD/lending_fUSD_20260122
["ID","MTS","AMOUNT","RATE_DAILY","PERIOD"]
[403055746,1769109045951,-5518.7219224,0.00029286,2]
[403055748,1769109045961,-1000.0,0.00029315,2]
[403055750,1769109045970,-150.61,0.00029336,2]
[403055753,1769109045980,-3210.0,0.00029419,2]
[403055754,1769109045990,-1000.0,0.00029589,2]
[403055757,1769109045999,-150.0,0.00029589,2]
[403055759,1769109046010,-1301.7,0.00029714,2]
[403055761,1769109046019,-1000.0,0.00029863,2]
[403055763,1769109046029,-55374.41031575,0.000299,2]
[403055765,1769109046039,-150.0,0.000299,2]
[403055767,1769109046048,-911.82774,0.000299,2]
[403055769,1769109046057,-361.4589,0.00029963,14]
[403055771,1769109046067,-236.9590274,0.0002999,2]
[403055773,1769109046076,-1512.28318555,0.0003,120]
[403055784,1769109046166,-2346.99204852,0.0003,2]
[403055828,1769109046566,-1363.98420144,0.0003,2]
[403055832,1769109046586,-1000.9105555,0.0003,2]
[403055834,1769109046595,-3799.4784556,0.0003,2]
[403055836,1769109046606,-629.67317731,0.0003,2]
[403055908,1769109047280,-11804.81995728,0.0003,2]
[403055920,1769109047383,-1467.31,0.00021636,2]
[403055923,1769109047393,-3610.83314152,0.0003,2]
[403055925,1769109047403,-4146.48554618,0.0003,2]
[403055927,1769109047412,-637.69904604,0.0003,2]
[403055984,1769109047945,-1177.24490957,0.0003,2]
[403055986,1769109047955,-440.64286586,0.0003,2]
[403055988,1769109047965,-162.79738868,0.0003,2]
[403055990,1769109047974,-6128.12246198,0.0003,14]
[403055992,1769109047983,-4750.0,0.0003,120]
[403055994,1769109047992,-544.57042217,0.0003,2]
[403055996,1769109048006,-4514.72745142,0.0003,2]
[403055998,1769109048015,-748.0,0.0003,30]
[403056000,1769109048025,-650.08899016,0.0003,2]
[403056002,1769109048034,-164.0,0.0003,120]
[403056005,1769109048044,-911.82774,0.000301,2]
[403056007,1769109048053,-1101.0,0.00030104,5]
[403056009,1769109048062,-1072.16543125,0.0003013,2]
[403056011,1769109048071,-13830.91975149,0.0003013,2]
[403056013,1769109048080,-633.17511186,0.0003013,2]
[403056015,1769109048089,-5052.43083185,0.0003013,2]
[403056017,1769109048099,-201.42878098,0.0003013,2]
[403056019,1769109048109,-1222.78730344,0.0003013,2]
[403056021,1769109048119,-7719.83989813,0.0003013,2]
[403056023,1769109048128,-1000.0,0.00030137,2]
[403056025,1769109048140,-333.52,0.00030137,2]
[403056027,1769109048150,-12204.33293883,0.000302,2]
[403056029,1769109048160,-911.82774,0.000303,2]
[403056031,1769109048169,-1055.44697797,0.00030365,2]
[403056033,1769109048179,-1000.0,0.00030411,7]
[403056035,1769109048189,-911.82774,0.000305,2]
[403056037,1769109048198,-275.04718251,0.00030573,2]
[403056039,1769109048207,-911.82774,0.000307,2]
[403056041,1769109048217,-163.08495989,0.00030744,5]
[403056043,1769109048226,-164.12572755,0.00030744,5]
[403056045,1769109048235,-150.47180521,0.00030744,5]
[403056047,1769109048244,-3210.0,0.00030788,2]
[403056049,1769109048254,-150.33,0.0003079,30]
[403056051,1769109048263,-3893.1878285,0.00030794,2]
[403056053,1769109048272,-1606.27161499,0.0003084,2]
[403056055,1769109048282,-150.0,0.000309,4]
[403056057,1769109048291,-911.82774,0.000309,2]
[403056059,1769109048302,-3706.63757538,0.00030907,2]
[403056061,1769109048312,-150.0,0.00030907,2]
[403056064,1769109048322,-78895.4172209,0.0003095,2]
[403056065,1769109048331,-51498.6459929,0.00031,2]
[403056067,1769109048340,-448.08586632,0.00031,30]
[403056069,1769109048349,-615.0,0.00031086,2]
[403056071,1769109048359,-1332.0,0.00031086,2]
[403056073,1769109048368,-3474.0,0.00031086,2]
[403056075,1769109048377,-1407.0,0.00031086,2]
[403056077,1769109048386,-184.0,0.00031086,2]
[403056079,1769109048396,-1268.0,0.00031086,2]
[403056081,1769109048405,-4828.0,0.00031086,2]
[403056083,1769109048414,-6565.0,0.00031086,2]
[403056085,1769109048423,-2441.0,0.00031086,2]
[403056088,1769109048433,-18931.50579495,0.0003121,2]
[403056090,1769109048443,-197.07729266,0.000315,2]
[403056092,1769109048452,-150.0,0.000315,2]
[403056093,1769109048462,-239.8882428,0.0003158,2]
[403056096,1769109048471,-1101.0,0.00031609,5]
[403056098,1769109048481,-523.0,0.0003168,13]
[403056100,1769109048490,-191.1,0.000319,6]
[403056102,1769109048500,-150.0,0.00032,2]
[403056104,1769109048509,-150.0,0.00032055,2]
[403056106,1769109048519,-3210.0,0.00032157,2]
[403056108,1769109048529,-500.0,0.0003216,2]
[403056110,1769109048538,-3711.84591012,0.00032174,2]
[403056112,1769109048547,-892.89998639,0.000323,2]
[403056113,1769109048557,-556.04,0.00032685,2]
[403056115,1769109048567,-551.0,0.00032688,30]
[403056117,1769109048575,-4822.9269095,0.000328,2]
[403056119,1769109048584,-344.21,0.00032877,2]
[403056122,1769109048594,-333.52,0.00032877,2]
[403056124,1769109048603,-168.66483591,0.00032877,2]
[403056125,1769109048612,-5000.0,0.00032877,120]
[403056127,1769109048621,-500.0,0.00032877,2]
[403056129,1769109048631,-500.0,0.00032877,2]
[403056132,1769109048640,-500.0,0.00032877,2]
[403056134,1769109048651,-500.0,0.00032877,2]
[403056136,1769109048659,-500.0,0.00032877,2]
[403056138,1769109048668,-350.26544043,0.00032877,2]
[403056140,1769109048677,-500.0,0.00032877,5]
[403056142,1769109048687,-784.0,0.00032877,2]
[403056144,1769109048696,-784.0,0.00032932,2]
[403056146,1769109048707,-784.0,0.00032987,2]
[403056148,1769109048717,-51226.17592646,0.00033,2]
[403056150,1769109048727,-26341.58643141,0.00033,2]
[403056152,1769109048736,-153.31507258,0.00033,2]
[403056154,1769109048745,-556.879932,0.00033,14]
[403056156,1769109048757,-784.0,0.00033041,2]
[403056158,1769109048767,-784.0,0.00033096,2]
[403056160,1769109048777,-784.0,0.00033151,2]
[403056162,1769109048787,-1101.0,0.00033189,5]
[403056164,1769109048796,-784.0,0.00033206,2]
[403056166,1769109048805,-784.0,0.00033261,2]
[403056168,1769109048815,-784.0,0.00033315,2]
[403056170,1769109048824,-1000.0,0.00033331,2]
[403056172,1769109048834,-1000.0,0.00033331,2]
[403056174,1769109048844,-1000.0,0.00033331,2]
[403056176,1769109048854,-1000.0,0.00033331,2]
[403056178,1769109048863,-1000.0,0.00033331,2]
[403056180,1769109048873,-1000.0,0.0003336,2]
[403056182,1769109048883,-1000.0,0.0003336,2]
[403056184,1769109048892,-1000.0,0.0003336,2]
[403056186,1769109048902,-1000.0,0.0003336,2]
[403056188,1769109048912,-1000.0,0.0003336,2]
[403056190,1769109048926,-784.0,0.0003337,2]
[403056192,1769109048945,-3893.1878285,0.00033413,2]
[403056194,1769109048956,-502.21128854,0.00033425,5]
[403056196,1769109048966,-784.0,0.00033425,2]
[403056198,1769109048975,-784.0,0.0003348,2]
[403056200,1769109048985,-1209.55161519,0.000335,2]
[403056203,1769109048995,-180.96821271,0.000335,2]
[403056205,1769109049005,-468.25,0.00033507,2]
[403056207,1769109049014,-468.25,0.00033507,2]
[403056209,1769109049023,-468.25,0.00033507,2]
[403056211,1769109049033,-468.25,0.00033507,2]
[403056213,1769109049043,-468.25,0.00033507,2]
[403056215,1769109049052,-468.25,0.00033507,2]
[403056217,1769109049062,-468.25,0.00033507,2]
[403056219,1769109049072,-936.5,0.00033507,2]
[403056221,1769109049081,-784.0,0.00033535,2]
[403056223,1769109049090,-1272.36626948,0.00033548,2]
[403056226,1769109049105,-2434.2713059,0.00033548,2]
[403056227,1769109049115,-784.0,0.00033589,2]
[403056230,1769109049125,-784.0,0.00033644,2]
[403056232,1769109049135,-784.0,0.00033699,2]
[403056234,1769109049144,-784.0,0.00033754,2]
[403056236,1769109049154,-484.22,0.00033781,2]
[403056238,1769109049163,-612.32,0.00033781,2]
[403056240,1769109049173,-612.32,0.00033781,2]
[403056242,1769109049183,-484.22,0.00033781,2]
[403056244,1769109049192,-612.32,0.00033781,2]
[403056246,1769109049201,-484.22,0.00033781,2]
[403056248,1769109049211,-255.22524497,0.00033781,2]
[403056250,1769109049223,-228.99475503,0.00033781,2]
[403056252,1769109049233,-612.32,0.00033781,2]
[403056254,1769109049242,-484.22,0.00033781,2]
[403056256,1769109049252,-612.32,0.00033781,2]
[403056258,1769109049262,-612.32,0.00033781,2]
[403056260,1769109049271,-484.22,0.00033781,2]
[403056262,1769109049280,-612.32,0.00033781,2]
[403056264,1769109049290,-484.22,0.00033781,2]
[403056266,1769109049301,-612.32,0.00033781,2]
[403056268,1769109049311,-484.22,0.00033781,2]
[403056270,1769109049321,-484.22,0.00033781,2]
[403056272,1769109049331,-612.32,0.00033781,2]
[403056275,1769109049341,-197.12,0.00033781,2]
[403056277,1769109049352,-612.32,0.00033781,2]
[403056279,1769109049362,-612.32,0.00033781,2]
[403056281,1769109049371,-612.32,0.00033781,2]
[403056282,1769109049381,-612.32,0.00033781,2]
[403056285,1769109049391,-784.0,0.00033809,2]
[403056286,1769109049400,-784.0,0.00033863,2]
[403056288,1769109049410,-784.0,0.00033918,2]
[403056290,1769109049419,-784.0,0.00033973,2]
[403056292,1769109049429,-326.63588603,0.00034,2]
[403056294,1769109049438,-1913.15065309,0.00034,2]
[403056297,1769109049448,-501.61503756,0.00034,2]
[403056299,1769109049459,-150.0,0.00034,2]
[403056301,1769109049468,-784.0,0.00034028,2]
[403056303,1769109049478,-784.0,0.00034082,2]
[403056305,1769109049487,-615.0,0.00034086,2]
[403056307,1769109049496,-1332.0,0.00034086,2]
[403056309,1769109049506,-3474.0,0.00034086,2]
[403056311,1769109049515,-1407.0,0.00034086,2]
[403056313,1769109049525,-173.0,0.00034086,2]
[403056314,1769109049534,-1268.0,0.00034086,2]
[403056317,1769109049544,-4828.0,0.00034086,2]
[403056319,1769109049554,-6565.0,0.00034086,2]
[403056321,1769109049564,-2441.0,0.00034086,2]
[403056323,1769109049574,-798.11609551,0.00034137,2]
[403056325,1769109049585,-300.0,0.00034173,5]
[403056327,1769109049595,-150.0,0.00034173,5]
[403056329,1769109049604,-231.07136996,0.0003429,7]
[403056331,1769109049616,-8202.29920013,0.0003429,7]
[403056333,1769109049627,-9622.36335734,0.0003429,7]
[403056335,1769109049636,-238.33,0.00034329,2]
[403056337,1769109049645,-179.77,0.00034329,2]
[403056339,1769109049655,-9347.2832205,0.0003436,2]
[403056341,1769109049666,-1729.14135792,0.0003449,2]
[403056343,1769109049675,-313.11206424,0.000347,2]
[403056346,1769109049690,-1845.3373977,0.000347,2]
[403056348,1769109049705,-2025.03293898,0.000347,2]
[403056350,1769109049716,-19401.80759908,0.000347,2]
[403056352,1769109049725,-134621.29548926,0.000347,2]
[403056354,1769109049737,-9520.85451074,0.000347,2]
[403056356,1769109049748,-701.10639016,0.00034721,5]
[403056358,1769109049758,-250.0,0.00034721,5]
[403056360,1769109049768,-612.32,0.0003474,2]
[403056362,1769109049779,-612.32,0.0003474,2]
[403056364,1769109049789,-492.61,0.0003474,2]
[403056366,1769109049798,-275.04718251,0.00034797,2]
[403056368,1769109049807,-342.5707012,0.00034849,120]
[403056370,1769109049816,-9336.17195548,0.0003488,120]
[403056372,1769109049826,-209.0,0.0003488,30]
[403056374,1769109049835,-1369.38749322,0.00035,2]
[403056376,1769109049847,-2192.04181665,0.00035,2]
[403056378,1769109049856,-563.97407308,0.00035,2]
[403057941,1769109065980,300.0,0.00019469,120]
[403057952,1769109066073,300.0,0.00020186,120]
[403058096,1769109067489,195.7224227,0.00019469,120]
[403058202,1769109069254,211.20333349,0.00019469,120]
[403058312,1769109703768,1000.0,0.00022,120]
[403058321,1769109734384,937.57,0.00022,120]
[403058324,1769109754126,1000.0,0.00022,120]
[403058325,1769109755445,1000.0,0.00022,120]
[403058326,1769109756597,1000.0,0.00022,120]
[403058329,1769109760344,1000.0,0.00022,120]
[403058330,1769109766876,1000.0,0.00022,120]
[403058331,1769109775262,1000.0,0.00022,120]
[403058332,1769109775573,1000.0,0.00022,120]
[403058333,1769109775916,1000.0,0.00022,120]
[403058334,1769109776269,1000.0,0.00022,120]
[403058336,1769109822731,1000.0,0.00022,120]
[403058337,1769109823143,1000.0,0.00022,120]
[403058338,1769109823449,1000.0,0.00022,120]
[403058339,1769109823836,1000.0,0.00022,120]
[403058341,1769109832799,769.14,0.00022,120]
[403058342,1769109837135,1000.0,0.00022,120]
[403058343,1769109837589,1000.0,0.00022,120]
[403058344,1769109839222,1000.0,0.00022,120]
[403058412,1769110232045,-257.310391,0.00016029,2]
[403058414,1769110232055,-186.8227444,0.0001611,2]
[403058416,1769110232065,-300.0,0.00016199,2]
[403058418,1769110232074,-1200.0,0.00016199,2]
[403058419,1769110232084,-1401.54849318,0.000162,5]
[403058420,1769110232101,-1954.0,0.000162,5]
[403058421,1769110232112,-1650.0,0.000162,5]
[403058422,1769110232124,-2400.0,0.000162,5]
[403058423,1769110232212,-6796.19105188,0.000162,5]
[403058424,1769110232221,-151.0,0.00016293,2]
[403058425,1769110232230,-219.46627378,0.00016654,2]
[403058426,1769110232239,-203.6956134,0.00016754,2]
[403058427,1769110232248,-1852.42,0.00016783,2]
[403058428,1769110232257,-36341.64693089,0.000169,2]
[403058429,1769110232266,-1736.351,0.00017325,2]
[403058430,1769110232275,-505.37199744,0.00017478,2]
[403058431,1769110232284,-3000.0,0.000175,3]
[403058432,1769110232293,-156.43,0.00017568,2]
[403058433,1769110232303,-156.43,0.00017568,2]
[403058434,1769110232312,-156.43,0.00017568,2]
[403058435,1769110232321,-5469.61,0.00017568,2]
[403058436,1769110232331,-5469.61,0.00017568,2]
[403058437,1769110232340,-165.23,0.00017568,2]
[403058438,1769110232349,-151.0,0.00017575,2]
[403058439,1769110232358,-2482.63707895,0.00017577,2]
[403058440,1769110232367,-550.0,0.00017577,2]
[403058441,1769110232376,-2481.3402,0.00017578,2]
[403058442,1769110232385,-23500.03,0.00017578,2]
[403058443,1769110232394,-73650.69569532,0.00017578,2]
[403058444,1769110232405,-3769.46710361,0.00017578,2]
[403058445,1769110232419,-572.84682148,0.00017578,2]
[403058446,1769110232431,-43845.13496653,0.00017578,2]
[403058447,1769110232452,-2109.64631498,0.00017578,2]
[403058448,1769110232462,-279.26125715,0.00017578,2]
[403058449,1769110232472,-500.0,0.00017578,2]
[403058454,1769110238150,-500.0,0.00017577,2]
[403058455,1769110238160,-347.97755342,0.00017577,2]
[403058456,1769110238171,-152.02244658,0.00017577,2]
[403058457,1769110238181,-500.0,0.00017577,2]
[403058458,1769110238191,-54.53347274,0.00017577,2]
[403058459,1769110238286,-304.0,0.00017577,2]
[403058460,1769110238314,-141.46652726,0.00017577,2]
[403058461,1769110238324,-500.0,0.00017577,2]
[403058462,1769110238334,-500.0,0.00017577,2]
[403058463,1769110238343,-500.0,0.00017577,2]
[403058464,1769110238354,-500.0,0.00017577,2]
[403058465,1769110238363,-500.0,0.00017577,2]
[403058466,1769110238373,-500.0,0.00017577,2]
[403058467,1769110238382,-500.0,0.00017577,2]
[403058468,1769110238392,-500.0,0.00017577,2]
[403058469,1769110238401,-500.0,0.00017577,2]
[403058470,1769110238411,-632.95699785,0.00017577,2]
[403058471,1769110238420,-500.0,0.00017577,2]
[403058473,1769110238430,-443.21701467,0.00017577,2]
[403058475,1769110238439,-875272.94784093,0.00017578,2]
[403058477,1769110238448,-58397.8885,0.00017578,2]
[403058479,1769110238458,-5031.96476991,0.00017581,2]
[403058481,1769110238468,-2057.71904723,0.00017589,2]
[403058482,1769110238478,-422.17879122,0.00017589,2]
[403058483,1769110238488,-5031.96476982,0.00017616,2]
[403058484,1769110238498,-2057.71904718,0.00017649,2]
[403058485,1769110238508,-5031.96476982,0.00017652,2]
[403058486,1769110238518,-334.64,0.00017668,3]
[403058487,1769110238528,-422.17879118,0.00017669,2]
[403058488,1769110238538,-500.0,0.00017673,2]
[403058489,1769110238548,-502.71264906,0.00017673,2]
[403058491,1769110238558,-414.92649477,0.00017673,2]
[403058493,1769110238568,-384.28123758,0.00017673,2]
[403058495,1769110238578,-500.0,0.00017673,2]
[403058496,1769110238588,-500.71110259,0.00017673,2]
[403058497,1769110238597,-500.0,0.00017673,2]
[403058498,1769110238607,-500.0,0.00017673,2]
[403058499,1769110238617,-502.40156004,0.00017677,2]
[403058500,1769110238627,-500.0,0.00017677,2]
[403058501,1769110238636,-500.0,0.00017677,2]
[403058502,1769110238646,-1209.65561051,0.00017677,5]
[403058503,1769110238656,-505.56624435,0.00017677,2]
[403058504,1769110238666,-500.0,0.00017677,2]
[403058505,1769110238676,-500.0,0.00017677,2]
[403058506,1769110238687,-500.0,0.00017677,2]
[403058507,1769110238697,-500.0,0.00017677,2]
[403058508,1769110238707,-598.24931453,0.00017677,2]
[403058510,1769110238717,-500.0,0.00017677,2]
[403058512,1769110238727,-5031.96476982,0.00017687,2]
[403058514,1769110238736,-970.6036,0.00017689,2]
[403058516,1769110238746,-500.0,0.00017689,2]
[403058518,1769110238756,-505.37199742,0.00017689,2]
[403058520,1769110238768,-420.0,0.00017707,2]
[403058522,1769110238779,-2057.71904718,0.00017709,2]
[403058525,1769110238790,-1130.42788457,0.00017713,2]
[403058527,1769110238800,-250.0,0.00017721,2]
[403058528,1769110238809,-300.0,0.00017721,2]
[403058531,1769110238819,-5074.53355401,0.00017721,2]
[403058532,1769110238830,-300.0,0.00017721,2]
[403058535,1769110238839,-611.72959528,0.00017721,2]
[403058537,1769110238849,-195.0,0.00017721,2]
[403058539,1769110238858,-250.0,0.00017721,2]
[403058541,1769110238869,-5031.96476982,0.00017723,2]
[403058543,1769110238879,-422.17879118,0.00017749,2]
[403058545,1769110238889,-5031.96476982,0.00017758,2]
[403058547,1769110238898,-2057.71904718,0.00017769,2]
[403058549,1769110238907,-5031.96476982,0.00017794,2]
[403058551,1769110238916,-1680.0,0.00017796,2]
[403058553,1769110238927,-600.0,0.00017819,2]
[403058555,1769110238936,-2057.71904718,0.00017829,2]
[403058556,1769110238945,-422.17879118,0.00017829,2]
[403058558,1769110238955,-5031.96476982,0.00017829,2]
[403058560,1769110238965,-1000.32393849,0.0001786,2]
[403058562,1769110238974,-5031.96476982,0.00017865,2]
[403058564,1769110238984,-2057.71904718,0.00017889,2]
[403058566,1769110238994,-4387.35975059,0.000179,2]
[403058568,1769110239003,-327.44630699,0.000179,3]
[403058570,1769110239013,-3983.39418368,0.000179,2]
[403058571,1769110239024,-2776.0293597,0.000179,2]
[403058573,1769110239034,-5031.96476982,0.000179,2]
[403058575,1769110239044,-363.87082392,0.000179,2]
[403058577,1769110239054,-260.47663316,0.000179,2]
[403058579,1769110239064,-505.37199742,0.000179,2]
[403058581,1769110239074,-422.17879118,0.00017909,2]
[403058583,1769110239084,-2057.71904718,0.00017949,2]
[403058585,1769110239093,-500.0,0.00017963,2]
[403058588,1769110239104,-1130.42788457,0.0001799,2]
[403058590,1769110239114,-1130.42788457,0.0001799,2]
[403058592,1769110239123,-151.0,0.00017997,2]
[403058594,1769110239133,-11866.44539761,0.00017999,2]
[403058595,1769110239144,-300.0,0.00017999,2]
[403058597,1769110239154,-377.2038592,0.00017999,2]
[403058600,1769110239164,-500.0,0.00017999,2]
[403058601,1769110239174,-500.0,0.00017999,2]
[403058604,1769110239184,-500.0,0.00017999,2]
[403058606,1769110239194,-374.56995797,0.00017999,2]
[403058608,1769110239205,-500.0,0.00017999,2]
[403058610,1769110239214,-168.58806567,0.00017999,2]
[403058612,1769110239224,-161.6587968,0.00017999,2]
[403058614,1769110239233,-595.27213064,0.00017999,2]
[403058616,1769110239244,-752.324,0.00018,2]
[403058618,1769110239254,-2884908.75150922,0.00018,2]
[403058620,1769110239266,-15801.2485822,0.00018,2]
[403058622,1769110239277,-500.0,0.00018,2]
[403058626,1769110239307,-28566.06299568,0.00018,2]
[403058733,1769110240240,-8729.85355906,0.00018,2]
[403058746,1769110240354,-969.03,0.00018,2]
[403058748,1769110240366,-6166406.41071498,0.00018,2]
[403058751,1769110240385,-922.18333418,0.00018,2]
[403058753,1769110240395,-473.93335833,0.00018,2]
[403058755,1769110240407,-2911.12206947,0.00018,2]
[403058757,1769110240418,-420.86114321,0.00018,2]
[403058760,1769110240432,-425.63,0.00018,2]
[403058762,1769110240671,-3391.7295467,0.00018,2]
[403058763,1769110240728,-500.0,0.00018,2]
[403058764,1769110240739,-893608.16495875,0.00018,2]
[403058765,1769110240750,-1681.97258,0.00018,2]
[403058823,1769110243281,-2584.11823244,0.00018,2]
[403058824,1769110243292,-512.6900035,0.00018,2]
[403058825,1769110243320,-393.39206397,0.00018,2]
[403058826,1769110243573,-1797.61271401,0.00018,2]
[403058827,1769110243596,-377.0,0.00018,2]
[403058834,1769110246209,-950.22,0.00018,2]
[403058851,1769110607319,5582.56,0.0001378,2]
[403058860,1769111432318,-270.82713782,0.0001579,2]
[403058861,1769111432328,-121.05286218,0.0001579,2]
[403058862,1769111432375,-245.38573782,0.0001579,2]
[403058863,1769111432383,-151.0,0.00016033,2]
[403058864,1769111432391,-500.0,0.000161,2]
[403058865,1769111432398,-219.46627378,0.00016154,2]
[403058866,1769111432409,-228.85,0.00016179,2]
[403058867,1769111432418,-611.72959528,0.0001624,2]
[403058868,1769111432427,-1200.0,0.00016253,2]
[403058869,1769111432437,-300.0,0.00016253,2]
[403058870,1769111432446,-7111.7962818,0.00016254,2]
[403058871,1769111432455,-481.29738971,0.00016254,2]
[403058872,1769111432465,-5062.58,0.00016301,2]
[403058873,1769111432474,-250.0,0.00016311,2]
[403058874,1769111432484,-151.0,0.00016318,2]
[403058875,1769111432494,-87910.94926297,0.00016321,2]
[403058876,1769111432505,-15929.46294545,0.00016321,2]
[403058877,1769111432517,-730.02153288,0.00016321,2]
[403058878,1769111432546,-285.26095391,0.00016321,2]
[403058883,1769111438432,-108992.69348543,0.00016321,2]
[403058884,1769111438447,-133165.20756988,0.00016321,2]
[403058885,1769111438459,-68595.32340191,0.00016321,2]
[403058886,1769111438470,-1063.15996059,0.00016321,2]
[403058887,1769111438490,-583327.92088698,0.00016321,2]
[403058888,1769111438500,-987.26,0.00016354,2]
[403058889,1769111438510,-300.0,0.00016359,2]
[403058890,1769111438520,-3240.0,0.00016361,2]
[403058891,1769111438529,-500.0,0.0001642,2]
[403058892,1769111438539,-500.0,0.0001642,2]
[403058893,1769111438548,-500.0,0.0001642,2]
[403058894,1769111438558,-500.0,0.0001642,2]
[403058895,1769111438568,-182.95699785,0.0001642,2]
[403058896,1769111438578,-10264.73,0.00016421,2]
[403058897,1769111438588,-1500.0,0.00016428,2]
[403058898,1769111438598,-7111.79628174,0.00016437,2]
[403058899,1769111438607,-500.0,0.00016438,2]
[403058901,1769111438617,-500.0,0.00016438,2]
[403058903,1769111438627,-500.0,0.00016438,2]
[403058905,1769111438636,-500.0,0.00016438,2]
[403058907,1769111438645,-500.0,0.00016438,2]
[403058910,1769111438655,-500.0,0.00016438,2]
[403058912,1769111438665,-500.0,0.00016438,2]
[403058914,1769111438674,-500.0,0.00016438,2]
[403058916,1769111438684,-500.0,0.00016438,2]
[403058918,1769111438694,-500.0,0.00016438,2]
[403058920,1769111438703,-616.90757753,0.00016438,2]
[403058922,1769111438713,-500.0,0.00016438,2]
[403058924,1769111438723,-179.58,0.00016509,2]
[403058926,1769111438732,-166.87,0.00016534,2]
[403058928,1769111438742,-7111.79628174,0.0001662,2]
[403058930,1769111438751,-8389.23,0.00016679,2]
[403058932,1769111438761,-7111.79628174,0.00016803,2]
[403058934,1769111438771,-762.8,0.00016805,2]
[403058936,1769111438781,-7111.79628174,0.00016986,2]
[403058938,1769111438790,-228.85,0.00016988,2]
[403058940,1769111438800,-164.52,0.00017016,2]
[403058942,1769111438810,-3631.05713481,0.0001705,2]
[403058944,1769111438820,-500.0,0.00017062,2]
[403058946,1769111438829,-2023.251,0.00017064,2]
[403058949,1769111438839,-500.0,0.00017064,2]
[403058951,1769111438854,-481.29738969,0.00017077,2]
[403058953,1769111438864,-7111.79628174,0.00017168,2]
[403058955,1769111438873,-58397.8885,0.000172,2]
[403058957,1769111438882,-550.0,0.00017289,2]
[403058959,1769111438892,-151.0,0.0001729,2]
[403058961,1769111438902,-151.0,0.0001729,2]
[403058963,1769111438911,-151.0,0.0001729,2]
[403058964,1769111438921,-151.0,0.0001729,2]
[403058966,1769111438931,-151.0,0.0001729,2]
[403058968,1769111438941,-151.0,0.0001729,2]
[403058970,1769111438951,-151.0,0.0001729,2]
[403058972,1769111438961,-151.0,0.0001729,2]
[403058974,1769111438972,-500.0,0.0001729,2]
[403058976,1769111438982,-151.0,0.0001729,2]
[403058978,1769111438993,-500.0,0.0001729,2]
[403058980,1769111439004,-151.0,0.0001729,2]
[403058982,1769111439015,-500.0,0.0001729,2]
[403058984,1769111439026,-151.0,0.0001729,2]
[403058986,1769111439037,-500.0,0.0001729,2]
[403058989,1769111439054,-500.0,0.0001729,2]
[403058991,1769111439070,-336.11039684,0.0001729,2]
[403058993,1769111439081,-200.0,0.0001729,2]
[403058995,1769111439092,-500.0,0.0001729,2]
[403058997,1769111439102,-500.0,0.0001729,2]
[403058999,1769111439113,-500.0,0.0001729,2]
[403059001,1769111439123,-503.36060886,0.0001729,2]
[403059003,1769111439133,-500.0,0.0001729,2]
[403059005,1769111439144,-507.83337354,0.0001729,2]
[403059007,1769111439155,-151.0,0.0001729,2]
[403059010,1769111439164,-151.0,0.0001729,2]
[403059012,1769111439175,-151.0,0.0001729,2]
[403059013,1769111439185,-151.0,0.0001729,2]
[403059016,1769111439196,-242.32982283,0.0001729,2]
[403059018,1769111439206,-4554.0788869,0.0001729,2]
[403059020,1769111439216,-570.06,0.0001729,2]
[403059022,1769111439226,-1000.0,0.00017299,2]
[403059024,1769111439236,-2330.54871604,0.000173,2]
[403059026,1769111439246,-2500.0,0.000173,2]
[403059028,1769111439256,-2462.44716835,0.00017321,2]